bitfinex/quotes_ETHUSD_20260217
["timestamp","ask_amount","ask_price","bid_price","bid_amount"]
[1771313208220,0.49685184,1978.6,1977.9,8.24626311]
[1771313210122,1.75907247,1978.5,1977.9,6.98229756]
[1771313211523,1.75907247,1978.5,1977.9,8.246263]
[1771313212327,1.75894475,1978.7,1978.0,0.49349349]
[1771313212825,0.49548895,1978.6,1978.0,0.49349349]
[1771313213025,0.0011,1978.5,1978.0,0.49349349]
[1771313216459,1.26468352,1978.5,1978.0,0.49349349]
[1771313218544,1.76017247,1978.5,1977.9,6.52838767]
[1771313218847,0.49548895,1978.4,1977.9,0.001]
[1771313220948,0.49548895,1978.2,1977.9,0.001]
[1771313224757,0.49548895,1978.3,1977.9,0.001]
[1771313224958,0.49548895,1978.3,1978.0,0.001]
[1771313226772,0.49548895,1978.1,1978.0,0.001]
[1771313227152,0.49548895,1978.1,1977.8,0.001]
[1771313229057,1.75939188,1978.0,1977.8,0.001]
[1771313229627,0.49548895,1977.9,1977.6,0.001]
[1771313230763,0.49548895,1977.8,1977.6,0.001]
[1771313231077,1.75957153,1977.8,1977.6,0.001]
[1771313231972,0.49548895,1977.7,1977.6,0.001]
[1771313232171,0.49548895,1977.7,1977.0,1.058]
[1771313232476,0.49548895,1977.7,1976.9,5.96288116]
[1771313233176,1.75964752,1977.6,1976.9,7.22747999]
[1771313233965,1.75964752,1977.6,1977.0,0.49349349]
[1771313235574,1.75964752,1977.6,1976.9,6.7339865]
[1771313235575,0.49537323,1977.5,1976.9,7.20650923]
[1771313235976,0.49537323,1977.5,1976.9,5.94191498]
[1771313236274,0.49537323,1977.5,1976.9,7.20651677]
[1771313236850,0.49537323,1977.5,1976.9,7.20650213]
[1771313237771,0.49537323,1977.5,1977.0,0.001]
[1771313238487,1.7595318,1977.6,1977.0,0.47352731]
[1771313239064,0.49537323,1977.5,1977.0,0.47352731]
[1771313239989,0.49537323,1977.7,1977.0,0.47352731]
[1771313240350,0.49537323,1977.7,1977.0,0.001]
[1771313241392,2.10097095,1977.9,1977.1,0.47252731]
[1771313241559,0.49537323,1978.0,1977.4,5.94191498]
[1771313241751,0.49537323,1978.0,1977.5,0.47252731]
[1771313241752,0.838,1978.0,1977.5,0.47252731]
[1771313241948,0.838,1978.0,1977.5,1.73669419]
[1771313242653,0.838,1978.0,1977.6,5.94191498]
[1771313243380,0.0011,1978.2,1977.7,0.47252731]
[1771313243557,1.26488034,1978.2,1977.7,0.47252731]
[1771313243772,0.0011,1978.2,1977.7,0.47252731]
[1771313244084,0.0011,1978.2,1977.8,0.47252731]
[1771313245888,0.49647323,1978.2,1977.6,0.47252731]
[1771313246187,0.49647323,1978.2,1977.5,2.79669763]
[1771313246188,0.49537323,1978.1,1977.5,2.79669763]
[1771313247285,0.49537323,1978.1,1977.5,1.53252731]
[1771313247585,0.49537323,1978.1,1977.2,10.57374381]
[1771313247788,0.49537323,1978.1,1977.2,7.20627112]
[1771313248188,0.49537323,1977.9,1977.2,7.20627112]
[1771313248361,0.49537323,1977.9,1977.3,0.47252731]
[1771313248762,0.49537323,1977.9,1977.1,1.26447337]
[1771313249160,0.49537323,1977.9,1977.1,0.47252731]
[1771313249381,0.49537323,1977.9,1977.0,0.001]
[1771313249382,0.49537323,1977.8,1977.0,0.001]
[1771313250094,0.49537323,1977.8,1977.0,1.26553114]
[1771313250389,1.75946788,1977.7,1977.0,1.73805845]
[1771313250559,1.75946788,1977.7,1977.1,0.001]
[1771313250755,0.49537323,1977.6,1977.1,0.001]
[1771313253185,0.4922571,1977.7,1977.1,0.001]
[1771313255895,1.75640026,1977.7,1977.1,0.48870994]
[1771313264500,1.75640026,1977.7,1977.2,0.001]
[1771313264702,0.0011,1977.6,1977.2,0.001]
[1771313268700,0.0011,1977.6,1977.2,0.4637491]
[1771313272391,0.45661719,1977.6,1977.2,0.001]
[1771313272903,1.72083204,1977.6,1977.2,0.001]
[1771313274300,0.45551719,1977.5,1977.2,0.001]
[1771313274725,1.26428643,1977.4,1977.2,0.001]
[1771313275021,1.71980362,1977.4,1977.2,0.001]
[1771313275202,1.26428643,1977.4,1976.9,0.001]
[1771313275407,0.45551719,1977.3,1976.7,0.001]
[1771313276728,1.71992983,1977.3,1976.7,0.49324175]
[1771313279104,1.71992983,1977.3,1977.2,0.001]
[1771313279310,1.71992983,1977.3,1977.0,0.001]
[1771313281522,1.71992983,1977.3,1976.7,0.001]
[1771313281523,0.45551719,1977.1,1976.7,0.001]
[1771313281838,5.47732111,1977.2,1976.7,0.001]
[1771313281839,0.45551719,1976.9,1976.7,0.001]
[1771313282201,0.845,1977.0,1976.7,0.001]
[1771313283030,0.45551719,1976.9,1976.7,0.001]
[1771313283531,1.26467017,1976.8,1976.7,0.001]
[1771313283927,0.45551719,1976.7,1976.1,0.49224175]
[1771313284229,0.45551719,1976.7,1976.1,1.7573582]
[1771313285337,1.26467017,1976.8,1976.2,0.49224175]
[1771313285628,5.51402035,1976.9,1976.3,0.49224175]
[1771313285629,1.26463629,1976.9,1976.3,0.49224175]
[1771313286023,1.72015348,1976.9,1976.3,0.49224175]
[1771313288546,1.72015348,1976.9,1976.2,7.23461091]
[1771313289941,0.45551719,1976.8,1976.2,7.23461091]
[1771313290740,1.72022598,1976.8,1976.2,6.74236916]
[1771313290942,1.72022598,1976.8,1976.3,0.001]
[1771313291241,1.72132598,1976.8,1976.3,0.001]
[1771313291938,0.0011,1976.8,1976.4,0.49224175]
[1771313293044,0.0011,1976.8,1976.4,1.75716123]
[1771313293213,2.52009755,1977.0,1976.4,0.49224175]
[1771313293748,1.26458036,1977.0,1976.5,0.49224175]
[1771313294242,1.26562376,1977.1,1976.5,0.49224175]
[1771313294445,1.20482376,1977.1,1976.5,0.49224175]
[1771313294845,1.68906842,1977.1,1976.5,0.49224175]
[1771313296039,2.10946458,1977.2,1976.6,0.46905943]
[1771313296224,2.59370924,1977.2,1976.6,0.46905943]
[1771313296545,1.26439168,1977.3,1976.8,0.46905943]
[1771313296742,2.11039168,1977.3,1976.8,0.46905943]
[1771313297425,2.11039168,1977.3,1976.7,5.47732111]
[1771313297426,2.59463634,1977.3,1976.7,5.47732111]
[1771313297624,2.59463634,1977.3,1976.7,5.94638054]
[1771313298246,0.48424466,1977.2,1976.5,6.74214333]
[1771313298615,0.48424466,1977.2,1976.5,7.21120276]
[1771313298816,1.74872293,1977.1,1976.3,8.27432962]
[1771313299134,0.48424466,1977.0,1976.3,1.73500851]
[1771313299443,0.48424466,1977.0,1976.3,0.47005943]
[1771313299743,0.48424466,1977.0,1976.3,1.26598561]
[1771313299934,0.48424466,1977.0,1976.3,0.001]
[1771313301213,0.48424466,1977.0,1976.2,1.73506411]
[1771313301214,0.48424466,1976.7,1975.8,0.46905943]
[1771313303428,1.26479813,1976.6,1975.8,0.46905943]
[1771313303611,0.48424466,1976.5,1975.8,0.46905943]
[1771313305548,1.74917078,1976.4,1975.9,0.001]
[1771313305729,1.26491028,1976.5,1975.9,0.47005943]
[1771313305930,1.74907821,1976.6,1976.0,0.46905943]
[1771313309148,0.48424466,1976.5,1975.9,5.47832111]
[1771313309335,0.48424466,1976.5,1975.9,0.001]
[1771313312664,2.10975187,1976.7,1976.0,0.46905943]
[1771313312832,2.59399653,1976.7,1976.0,0.46905943]
[1771313313033,0.48424466,1976.6,1976.0,0.46905943]
[1771313313752,0.845,1976.7,1976.3,5.94638054]
[1771313314059,0.845,1976.7,1976.3,0.46905943]
[1771313314552,2.59399374,1976.7,1976.1,0.46905943]
[1771313315052,0.48424466,1976.6,1975.9,1.73526287]
[1771313315451,0.48424466,1976.6,1975.9,0.47005943]
[1771313315838,0.48424466,1976.6,1975.9,0.001]
[1771313316833,0.48424466,1976.4,1975.9,0.001]
[1771313318728,0.48424466,1976.4,1976.0,0.001]
[1771313318937,1.26499013,1976.3,1976.0,0.001]
[1771313319860,0.48424466,1976.2,1975.8,0.001]
[1771313320036,0.48424466,1976.1,1975.2,0.46905943]
[1771313321069,1.26499013,1976.3,1975.6,0.46905943]
[1771313321365,0.845,1976.1,1975.6,0.46905943]
[1771313322441,0.7842,1976.1,1975.6,0.46905943]
[1771313322641,0.7842,1976.1,1975.6,1.73449268]
[1771313324872,0.49013514,1976.4,1975.7,0.46224086]
[1771313325171,2.59898366,1976.6,1975.9,0.46224086]
[1771313325472,2.59894035,1976.6,1975.9,0.46224086]
[1771313326234,2.59894035,1976.6,1975.9,1.72746042]
[1771313327052,0.49013514,1976.5,1975.8,0.46224086]
[1771313327873,2.10880521,1976.6,1976.0,0.46224086]
[1771313327874,0.844,1976.6,1976.0,0.46224086]
[1771313328073,2.10880139,1976.6,1976.0,0.46224086]
[1771313328373,2.59893653,1976.6,1975.9,5.48596562]
[1771313328554,0.49013514,1976.5,1975.9,5.48596562]
[1771313328874,0.49013514,1976.5,1975.9,6.75120137]
[1771313329751,0.49013514,1976.5,1975.9,7.21344223]
[1771313331949,0.0011,1976.5,1976.0,0.46869551]
[1771313333179,0.0011,1976.5,1976.2,0.46869551]
[1771313333848,0.0011,1976.8,1976.2,0.46869551]
[1771313334370,1.75463543,1976.8,1976.0,1.73382794]
[1771313334570,1.75463543,1976.8,1976.1,0.46869551]
[1771313335148,1.75463543,1976.8,1976.1,1.73379565]
[1771313335548,1.75463543,1976.8,1976.1,0.46869551]
[1771313336049,1.75463543,1976.8,1976.1,1.73380682]
[1771313336347,1.75463543,1976.8,1976.1,0.46869551]
[1771313337170,1.75463543,1976.8,1976.1,1.73381099]
[1771313338055,0.48993374,1976.8,1976.1,1.73381099]
[1771313338261,1.75461104,1976.8,1976.1,1.73381099]
[1771313338462,1.75461104,1976.8,1976.2,0.46869551]
[1771313339077,0.48993374,1976.8,1976.2,0.46869551]
[1771313339581,1.75461042,1976.8,1976.2,0.46869551]
[1771313341484,1.75461042,1976.8,1976.2,1.73374579]
[1771313341684,0.48993374,1976.8,1976.2,1.73374579]
[1771313341888,1.7546064,1976.8,1976.2,1.73374579]
[1771313342060,1.7546064,1976.8,1976.2,0.46869551]
[1771313343192,0.48883374,1976.7,1975.7,0.001]
[1771313343486,0.48883374,1976.7,1975.9,0.46869551]
[1771313343685,0.48883374,1976.7,1975.7,0.46969551]
[1771313344707,0.8411,1976.8,1975.7,0.46969551]
[1771313344865,2.10577992,1976.8,1975.7,0.46969551]
[1771313345060,2.10577992,1976.8,1975.9,0.46869551]
[1771313345369,0.8411,1976.8,1976.1,0.46869551]
[1771313346161,0.0011,1976.7,1976.1,0.46869551]
[1771313348165,0.0011,1976.7,1976.2,0.46869551]
[1771313350372,0.0011,1976.7,1976.3,0.46869551]
[1771313352908,0.0011,1976.7,1976.5,0.46869551]
[1771313353268,0.0011,1976.7,1976.3,1.73365371]
[1771313353787,0.0011,1976.7,1976.4,0.46869551]
[1771313355701,0.0011,1976.7,1976.4,1.73361931]
[1771313357902,0.0011,1976.7,1976.4,0.46869551]
[1771313358087,0.0011,1976.7,1976.2,1.75769728]
[1771313358870,0.0011,1976.7,1976.2,1.75869728]
[1771313361111,0.0011,1976.7,1976.2,0.4936501]
[1771313361273,0.48757325,1976.7,1976.2,0.001]
[1771313363016,1.75234163,1976.7,1976.2,0.001]
[1771313368725,0.48647325,1976.6,1976.2,0.001]
[1771313369726,1.751288,1976.6,1976.2,0.001]
[1771313370730,1.751288,1976.6,1976.3,0.001]
[1771313371028,1.752388,1976.6,1976.3,0.001]
[1771313371329,0.48757325,1976.6,1976.3,0.001]
[1771313371497,0.0011,1976.6,1976.3,0.4936501]
[1771313373919,0.0011,1976.6,1976.3,0.001]
[1771313374825,0.0011,1976.6,1976.3,0.4936501]
[1771313376338,0.0011,1976.6,1976.3,0.001]
[1771313381042,0.0011,1976.6,1976.4,0.4926501]
[1771313381216,0.0011,1976.7,1976.4,0.4926501]
[1771313383610,0.0011,1976.7,1976.5,1.75751223]
[1771313383939,0.0011,1976.8,1976.5,1.75751223]
[1771313384124,0.0011,1976.8,1976.6,0.48191917]
[1771313384335,0.0011,1976.8,1976.5,1.26486213]
[1771313384520,0.0011,1976.8,1976.4,2.79779512]
[1771313384841,0.0011,1976.8,1976.5,0.48191917]
[1771313386143,0.0011,1976.8,1976.6,1.26479813]
[1771313386318,0.0011,1976.8,1976.6,1.7467173]
[1771313387415,0.0011,1976.8,1976.6,0.48191917]
[1771313390310,0.0011,1976.8,1976.6,1.74671181]
[1771313390938,0.0011,1976.8,1976.5,1.72020779]
[1771313391137,0.0011,1977.0,1976.6,0.45538529]
[1771313391329,0.0011,1977.0,1976.4,2.31788499]
[1771313391330,0.48620115,1977.0,1976.4,2.31788499]
[1771313391513,0.48620115,1977.0,1976.4,1.26588499]
[1771313391713,0.48620115,1977.0,1976.4,2.31788499]
[1771313394916,1.75074645,1977.0,1976.4,2.31788499]
[1771313395322,0.48620115,1977.0,1976.4,2.31788499]
[1771313395523,0.48620115,1977.0,1976.4,2.77327028]
[1771313395726,0.48620115,1977.0,1976.4,1.72127028]
[1771313396737,0.0011,1977.0,1976.5,5.93539993]
[1771313396934,0.0011,1977.0,1976.6,1.26479813]
[1771313397137,0.0011,1976.9,1976.6,1.26479813]
[1771313400450,0.0011,1976.9,1976.7,0.45538529]
[1771313400648,0.0011,1977.2,1976.7,0.45538529]
[1771313400649,0.0011,1977.2,1976.9,5.93539993]
[1771313400950,0.0011,1977.2,1976.9,0.45538529]
[1771313402076,0.0011,1977.5,1977.0,0.45538529]
[1771313402637,0.0011,1977.5,1977.1,1.26447827]
[1771313402835,0.0011,1977.5,1977.0,1.71987734]
[1771313403044,0.48620115,1977.5,1976.8,2.31961513]
[1771313403344,0.48620115,1977.5,1976.5,0.001]
[1771313403345,0.48620115,1977.5,1976.6,6.56943753]
[1771313403647,0.48510115,1977.4,1976.5,1.26585826]
[1771313403838,0.48510115,1977.4,1976.5,1.057]
[1771313404033,0.48510115,1977.4,1976.5,2.77724569]
[1771313404244,0.48510115,1977.4,1976.6,0.45538529]
[1771313404450,0.48510115,1977.4,1976.8,0.45538529]
[1771313404816,0.48510115,1977.4,1976.8,1.72000773]
[1771313405021,0.0011,1977.5,1976.9,5.93539993]
[1771313405227,0.0011,1977.5,1977.0,0.45538529]
[1771313407052,0.0011,1977.5,1977.0,1.71991542]
[1771313407555,0.48620115,1977.5,1976.9,1.26456082]
[1771313407959,0.48620115,1977.5,1976.9,1.71994611]
[1771313409258,0.0011,1977.4,1976.9,1.71994611]
[1771313410432,0.48620115,1977.4,1976.8,1.26462151]
[1771313411558,0.48510115,1977.3,1976.8,1.26462151]
[1771313411863,0.48510115,1977.3,1976.7,1.26468416]
[1771313412562,0.48510115,1977.3,1976.7,1.72006945]
[1771313412764,1.26542922,1977.4,1976.8,0.45538529]
[1771313413444,1.26542922,1977.4,1976.8,1.72001608]
[1771313413647,0.48510115,1977.3,1976.7,1.26468553]
[1771313416441,0.0011,1977.4,1976.8,0.48589232]
[1771313417568,1.26538954,1977.4,1976.8,0.48589232]
[1771313418876,0.46975393,1977.4,1976.7,1.26473001]
[1771313419347,0.46975393,1977.4,1976.7,1.75062233]
[1771313420163,0.46975393,1977.4,1976.8,0.48589232]
[1771313421381,0.46975393,1977.4,1976.9,1.2656062]
[1771313421788,0.46975393,1977.4,1976.9,1.75149852]
[1771313421789,0.0011,1977.4,1976.9,1.75149852]
[1771313422573,0.46975393,1977.4,1976.9,1.2656062]
[1771313422777,0.46975393,1977.4,1976.9,0.001]
[1771313424282,1.73404952,1977.4,1976.9,0.001]
[1771313426277,1.73404576,1977.4,1976.9,0.001]
[1771313426487,0.46975393,1977.4,1976.9,0.001]
[1771313426853,0.0011,1977.4,1977.1,0.48589232]
[1771313427671,0.0011,1977.5,1977.1,0.48589232]
[1771313428182,0.0011,1977.5,1977.1,1.75033284]
[1771313428395,0.0011,1977.5,1977.2,0.48589232]
[1771313428687,0.0011,1977.5,1977.0,7.23040613]
[1771313429456,0.0011,1977.5,1977.1,0.48589232]
[1771313431290,0.0011,1977.5,1977.2,1.75030664]
[1771313431486,0.0011,1977.5,1977.2,0.48589232]
[1771313432994,0.0011,1977.5,1977.1,1.26443654]
[1771313433167,0.46975393,1977.5,1976.9,6.11740831]
[1771313433387,0.46865393,1977.4,1976.9,0.001]
[1771313434387,0.46975393,1977.4,1976.9,0.001]
[1771313435287,1.73404307,1977.4,1976.9,0.001]
[1771313435606,0.46975393,1977.4,1976.9,0.001]
[1771313436000,1.7340516,1977.4,1976.9,0.001]
[1771313437511,0.46975393,1977.4,1976.9,0.001]
[1771313438812,0.0011,1977.4,1976.9,0.48689232]
[1771313439007,1.73404297,1977.4,1976.9,0.001]
[1771313439209,0.46865393,1977.3,1976.9,0.001]
[1771313439909,1.73305633,1977.3,1976.9,0.001]
[1771313440084,0.46865393,1977.3,1976.9,0.001]
[1771313441596,1.73302418,1977.3,1976.9,0.001]
[1771313442029,5.05840817,1977.4,1976.9,0.001]
[1771313442030,0.46865393,1977.2,1976.9,0.001]
[1771313442200,0.46865393,1977.2,1976.6,0.001]
[1771313444127,1.26447312,1977.2,1976.6,0.001]
[1771313444304,0.0011,1977.4,1976.7,0.45642641]
[1771313444305,2.55311844,1977.4,1976.7,0.45642641]
[1771313445896,2.55311844,1977.4,1976.7,0.45742641]
[1771313446198,0.0011,1977.3,1976.7,1.72211474]
[1771313448230,0.46278087,1977.3,1976.7,0.001]
[1771313450529,0.46155153,1977.1,1976.7,0.001]
[1771313452422,1.72609376,1977.0,1976.7,0.001]
[1771313452642,0.46155153,1976.9,1976.7,0.001]
[1771313454944,1.72620875,1976.9,1976.7,0.001]
[1771313457848,1.72620875,1976.9,1976.8,0.001]
[1771313458645,0.46155153,1976.9,1976.8,0.001]
[1771313458852,1.26568967,1977.0,1976.8,0.001]
[1771313460449,1.26568967,1977.0,1976.8,0.48667972]
[1771313460450,0.0011,1977.0,1976.8,0.48667972]
[1771313460628,0.0011,1977.0,1976.8,0.001]
[1771313466747,0.46265153,1977.0,1976.8,0.001]
[1771313469054,1.72615773,1976.9,1976.8,0.001]
[1771313470059,1.72615773,1976.9,1976.3,1.69586345]
[1771313470724,5.05934932,1977.0,1976.4,0.48567972]
[1771313470725,1.26568944,1977.0,1976.4,0.48567972]
[1771313470939,0.0011,1977.0,1976.6,0.48567972]
[1771313471748,0.0011,1977.0,1976.9,0.48567972]
[1771313472367,0.0011,1977.0,1976.8,0.001]
[1771313472885,0.0011,1977.0,1976.8,1.75134982]
[1771313474546,0.0011,1977.1,1976.9,0.49490141]
[1771313475468,0.0011,1977.3,1976.9,0.49490141]
[1771313477252,0.0011,1977.3,1977.0,0.49490141]
[1771313478053,0.0011,1977.3,1976.8,1.76056951]
[1771313478647,0.0011,1977.3,1976.8,1.76056379]
[1771313479979,0.0011,1977.3,1976.8,1.26565852]
[1771313480200,0.0011,1977.3,1976.9,0.49490141]
[1771313481982,0.0011,1977.3,1977.0,1.26454223]
[1771313482187,0.0011,1977.3,1976.9,1.75950635]
[1771313482375,0.0011,1977.3,1976.8,1.26562735]
[1771313482551,0.0011,1977.3,1976.8,1.76052876]
[1771313484584,0.0011,1977.3,1976.9,0.001]
[1771313484886,0.0011,1977.2,1976.9,0.49590141]
[1771313487799,0.0011,1977.2,1976.9,1.76048392]
[1771313488297,0.0011,1977.4,1977.0,0.49490141]
[1771313490287,0.0011,1977.4,1977.1,1.75937968]
[1771313491283,0.0011,1977.6,1977.2,0.49490141]
[1771313491470,0.0011,1977.6,1977.3,5.97406363]
[1771313492090,0.0011,1977.6,1977.3,0.49490141]
[1771313493015,0.0011,1977.6,1977.2,1.75926575]
[1771313494371,0.0011,1977.6,1977.3,0.49490141]
[1771313494772,0.0011,1977.6,1977.4,0.49490141]
[1771313495184,0.0011,1977.6,1977.3,1.75919697]
[1771313496032,0.0011,1977.6,1977.4,0.49490141]
[1771313496803,0.0011,1977.6,1977.4,1.75918659]
[1771313497113,0.0011,1977.8,1977.4,1.75918659]
[1771313497713,0.0011,1977.8,1977.4,0.49490141]
[1771313497936,0.0011,1977.8,1977.3,5.47916222]
[1771313498147,0.50069473,1977.8,1977.2,2.8202655]
[1771313500918,1.2651362,1977.8,1977.3,0.49490141]
[1771313501227,1.4651362,1977.8,1977.3,0.49490141]
[1771313501748,0.49959473,1977.7,1977.0,3.841]
[1771313502043,0.49959473,1977.7,1977.0,0.001]
[1771313502044,0.49959473,1977.5,1977.0,0.001]
[1771313502361,0.49959473,1977.5,1976.2,0.001]
[1771313502362,0.49959473,1977.0,1976.2,0.001]
[1771313502513,0.49959473,1976.5,1976.2,0.001]
[1771313502905,0.49959473,1976.5,1975.5,1.26549749]
[1771313503129,0.49959473,1976.3,1975.6,0.002]
[1771313503332,0.49959473,1976.3,1975.5,0.002]
[1771313503915,0.49959473,1976.2,1975.5,0.002]
[1771313505335,6.30516222,1976.6,1975.8,5.96870039]
[1771313505336,0.47662231,1976.5,1975.8,5.96870039]
[1771313505809,0.47662231,1976.5,1975.9,0.002]
[1771313506015,0.47662231,1976.5,1975.9,1.26724621]
[1771313506208,0.47662231,1976.5,1976.0,0.002]
[1771313506624,1.74148942,1976.5,1976.1,0.002]
[1771313506937,1.74148942,1976.5,1976.0,0.002]
[1771313507142,0.47662231,1976.5,1976.0,0.002]
[1771313507512,1.74149288,1976.5,1976.1,0.002]
[1771313507712,1.74149288,1976.5,1975.9,0.002]
[1771313508945,1.74149288,1976.5,1975.8,1.26530559]
[1771313509239,1.74149288,1976.5,1976.1,0.001]
[1771313510724,0.47662231,1976.5,1976.1,0.001]
[1771313511151,5.88374144,1976.8,1976.2,0.002]
[1771313511152,1.72680677,1976.7,1976.2,0.002]
[1771313511957,0.46204187,1976.6,1976.2,0.002]
[1771313512452,1.726904,1976.5,1976.2,0.002]
[1771313513042,0.46204187,1976.4,1976.2,0.002]
[1771313514155,1.72688961,1976.6,1976.2,0.002]
[1771313515254,0.825,1976.8,1976.2,0.47915134]
[1771313515552,0.825,1976.8,1976.3,0.002]
[1771313515751,2.08967133,1976.8,1976.3,0.002]
[1771313515958,2.08967133,1976.8,1976.4,0.002]
[1771313516149,2.08967133,1976.8,1976.3,0.002]
[1771313516535,0.825,1976.8,1976.4,0.002]
[1771313516753,2.08967223,1976.8,1976.3,0.002]
[1771313516949,0.46204187,1977.3,1976.3,0.47915134]
[1771313517155,0.827,1977.0,1976.4,0.002]
[1771313517351,0.827,1977.0,1976.4,0.47915134]
[1771313517551,0.46204187,1977.4,1976.4,0.47915134]
[1771313519864,0.46204187,1977.4,1976.6,0.47715134]
[1771313520065,1.72731178,1977.6,1976.8,0.47715134]
[1771313521047,0.46314187,1977.6,1976.8,0.47715134]
[1771313521761,0.0011,1977.6,1977.0,0.47715134]
[1771313521964,0.0011,1977.6,1977.1,1.26447827]
[1771313522332,0.0011,1977.6,1977.2,0.002]
[1771313522977,0.0011,1977.3,1977.2,0.002]
[1771313523266,0.0011,1977.3,1976.0,5.06151281]
[1771313523267,0.46314187,1977.3,1976.5,1.741971]
[1771313523443,0.46314187,1977.3,1976.4,1.2668804]
[1771313523651,0.46314187,1977.3,1976.4,0.002]
[1771313523843,0.46204187,1976.9,1976.4,0.002]
[1771313525167,0.46204187,1976.9,1976.2,0.001]
[1771313525371,0.46204187,1976.9,1976.3,0.002]
[1771313525874,1.7266548,1976.9,1976.3,0.002]
[1771313526280,0.46204187,1976.9,1976.3,0.002]
[1771313526445,0.46204187,1977.1,1976.3,0.47915134]
[1771313526646,0.425,1977.2,1976.5,0.47715134]
[1771313527042,0.425,1977.2,1976.6,0.002]
[1771313527470,0.425,1977.2,1976.6,0.47915134]
[1771313527855,0.9121,1977.3,1976.8,0.47715134]
[1771313528381,0.9121,1977.3,1976.9,0.002]
[1771313528879,0.0011,1977.3,1976.9,0.47915134]
[1771313529677,0.0011,1977.6,1977.1,0.47715134]
[1771313529878,0.0011,1977.6,1977.2,1.26531432]
[1771313530085,0.0011,1977.6,1977.2,0.0009]
[1771313531050,0.0011,1977.6,1977.2,0.47805134]
[1771313532075,0.0011,1977.6,1977.3,1.26435037]
[1771313532579,0.0011,1977.6,1977.4,0.0009]
[1771313535166,0.0011,1977.5,1977.4,0.0009]
[1771313535367,0.2011,1977.8,1977.4,0.48990882]
[1771313535582,0.2011,1977.8,1977.4,0.47710882]
[1771313536268,0.0011,1977.9,1977.4,0.47710882]
[1771313536474,0.0011,1978.1,1977.4,0.48900882]
[1771313537269,0.0011,1978.2,1977.6,0.48900882]
[1771313538296,0.0011,1978.3,1977.8,0.48900882]
[1771313539569,0.0011,1978.5,1977.9,1.26396683]
[1771313539771,0.0011,1978.5,1977.9,1.75297565]
[1771313540167,0.0011,1978.7,1978.1,0.48900882]
[1771313540692,0.911,1979.0,1978.3,0.48900882]
[1771313541673,0.822,1979.4,1978.5,0.48900882]
[1771313541873,2.66708435,1979.7,1978.8,11.03635882]
[1771313542099,2.66708435,1979.7,1978.9,0.48900882]
[1771313542270,2.66708435,1979.7,1978.4,2.11864739]
[1771313542271,2.66708435,1979.7,1978.7,0.48900882]
[1771313542471,0.49326022,1979.6,1978.8,2.54309]
[1771313542683,0.49326022,1979.6,1978.8,3.03209882]
[1771313543000,0.49326022,1979.6,1978.8,0.48900882]
[1771313543501,2.17382413,1979.7,1979.0,0.48900882]
[1771313543502,0.911,1979.7,1979.0,0.48900882]
[1771313543691,1.26266002,1980.0,1979.2,0.48900882]
[1771313544005,1.26260931,1980.1,1979.2,0.48900882]
[1771313544370,5.46014219,1980.2,1979.2,0.48900882]
[1771313544371,1.6725424,1980.2,1979.2,0.48900882]
[1771313545775,1.67250074,1980.2,1979.4,0.48900882]
[1771313546493,1.67250549,1980.2,1979.4,0.48900882]
[1771313547715,0.0011,1980.1,1979.5,1.751954]
[1771313547901,0.0011,1980.1,1979.6,0.48900882]
[1771313548105,0.49326022,1980.8,1979.8,0.48900882]
[1771313548427,0.409,1980.8,1979.4,1.26296797]
[1771313548611,0.49326022,1980.7,1979.2,1.75210738]
[1771313548813,0.49436022,1980.2,1979.4,8.765253]
[1771313549033,0.0011,1980.2,1979.4,9.25426182]
[1771313549191,0.0011,1980.2,1979.4,0.48900882]
[1771313549391,0.49436022,1980.2,1979.4,3.217201]
[1771313549610,0.49436022,1980.2,1979.4,2.431201]
[1771313549914,1.26256249,1980.1,1979.4,1.26300899]
[1771313551389,1.75686004,1980.2,1979.4,4.536141]
[1771313551616,1.75686004,1980.2,1979.3,5.05225276]
[1771313551617,1.75686004,1980.2,1979.3,1.2630728]
[1771313552217,1.75686004,1980.2,1979.4,2.454837]
[1771313553021,0.49326022,1980.1,1979.1,5.54174645]
[1771313553220,0.49326022,1980.1,1979.2,2.373216]
[1771313553631,0.49326022,1979.9,1979.0,2.31821903]
[1771313553805,0.49326022,1979.9,1979.1,3.341484]
[1771313554005,5.05050505,1980.1,1979.0,2.31821903]
[1771313554006,1.75584108,1980.1,1979.3,0.48900882]
[1771313554402,1.26258086,1980.1,1979.3,0.48900882]
[1771313554604,0.49326022,1980.0,1979.2,9.117359]
[1771313555409,0.49326022,1980.0,1979.1,0.48900882]
[1771313555609,1.26269003,1979.9,1979.2,5.11176685]
[1771313555806,1.26269003,1979.9,1979.2,1.26307585]
[1771313556209,1.75595025,1979.9,1979.0,1.26321861]
[1771313556410,0.49326022,1979.8,1978.9,1.053]
[1771313556612,0.49326022,1979.8,1978.6,7.811309]
[1771313556808,0.49326022,1979.8,1978.7,2.162448]
[1771313557308,0.49326022,1979.8,1978.8,3.898313]
[1771313557512,0.49326022,1979.8,1978.8,2.172768]
[1771313557727,0.49326022,1979.6,1978.7,1.26340795]
[1771313557926,0.49326022,1979.6,1978.8,2.974686]
[1771313558333,0.49326022,1979.6,1978.8,2.1777]
[1771313559504,0.49326022,1979.6,1978.7,3.39281]
[1771313560622,1.26294518,1979.5,1978.7,4.65620986]
[1771313560803,1.26294518,1979.5,1978.8,0.001]
[1771313561534,1.26294518,1979.5,1978.9,2.544081]
[1771313562109,0.49326022,1979.4,1978.8,0.001]
[1771313562843,1.2630728,1979.3,1978.8,0.001]
[1771313563615,0.49326022,1979.2,1978.8,0.001]
[1771313565508,0.45633234,1979.4,1978.8,0.001]
[1771313565742,1.26294518,1979.5,1978.8,0.001]
[1771313566047,2.08093249,1979.6,1978.8,0.46775292]
[1771313566945,2.53726483,1979.6,1978.8,0.46775292]
[1771313569645,0.45633234,1979.5,1978.7,0.001]
[1771313569945,2.08093249,1979.6,1978.5,0.001]
[1771313569946,1.71946896,1979.2,1978.5,0.001]
[1771313570516,0.4908584,1979.1,1978.5,0.001]
[1771313574078,1.26326427,1979.0,1978.6,0.001]
[1771313575485,1.26325004,1979.1,1978.6,0.001]
[1771313575687,5.05237744,1979.3,1978.6,0.45360123]
[1771313579368,5.54323584,1979.3,1978.6,0.45360123]
[1771313580296,1.2630728,1979.3,1978.7,0.45260123]
[1771313581993,2.17304421,1979.4,1978.8,1.71599318]